Cogmind - Beta 13 @@@ ROGUE MODE // 2024.04.13 @ 16:16:19 Player: paplal Result: Destroyed by Y-45 Defender with Beam Rifle Performance ------------- Evolutions (1) 500 Regions Visited (2) 400 Robots Destroyed (31) 155 Value Destroyed (597) 597 Prototype IDs (0) 0 Alien Tech Used (0) 0 Bonus (0) 0 TOTAL SCORE: 1652 Bonus ------- None Cogmind --------- Core Integrity 0/400 Matter 225/300 Energy 66/100 System Corruption 11% Temperature Warm (121) Movement Core (400) Ox7 Location -9/Materials Parts ------- > --- POWER (1) -------- (None) > --- PROPULSION (2) --- (None) > --- UTILITY (4) ------ Large Storage Unit > --- WEAPON (2) ------- Mini Grenade Launcher Maul > --- INVENTORY (15) --- Light Treads Assault Rifle Datajack Peak State ------------ > --- POWER ------------ Light Ion Engine > --- PROPULSION ------- Light Treads Light Treads > --- UTILITY ---------- Large Storage Unit Sensor Array Improved Terrain Scanner Weapon Shielding > --- WEAPON ----------- Mining Laser Maul > --- INVENTORY -------- Light Treads Aluminum Leg Aluminum Leg Assault Rifle Shotgun Mini Grenade Launcher Datajack Maul [Rating: 13] Favorites ----------- Power Light Ion Engine Engine Light Ion Engine Propulsion Light Treads Treads Light Treads Leg Aluminum Leg Wheel Wheel Utility Improved Terrain Scanner Device Improved Terrain Scanner Storage Large Storage Unit Protection Weapon Shielding Weapon Assault Rifle Energy Gun EM Pulse Gun Ballistic Gun Assault Rifle Launcher Mini Grenade Launcher Special Weapon Mining Laser Impact Weapon Maul Build | -11 -10 -9 ------- Run | Yrd Mat Mat Slots Evolved 2 | . . 2 Power . | . . . Propulsion . | . . . Utility 2 | . . 2 Weapon . | . . . Parts Attached 32 | 6 12 14 Power 3 | 1 1 1 Engine 3 | 1 1 1 Core . | . . . Reactor . | . . . Propulsion 10 | 2 4 4 Treads 5 | . 3 2 Leg 3 | . 1 2 Wheel 2 | 2 . . Hover . | . . . Flight . | . . . Utility 7 | 2 1 4 Device 5 | 2 . 3 Storage 1 | . . 1 Processor . | . . . Hackware . | . . . Protection 1 | . 1 . Artifact . | . . . Weapon 12 | 1 6 5 Energy Gun 1 | . 1 . Energy Cannon . | . . . Ballistic Gun 3 | 1 2 . Ballistic Cannon . | . . . Launcher 2 | . . 2 Special Weapon 3 | . 3 . Impact Weapon 3 | . . 3 Slashing Weapon . | . . . Piercing Weapon . | . . . Special Melee Weapon . | . . . Unidentified Prototypes . | . . . Parts Lost 13 | . 3 10 Power 2 | . 1 1 Propulsion 4 | . . 4 Utility 5 | . 1 4 Weapon 2 | . 1 1 Highest Loss Streak 5 | . 3 5 To Critical Strikes 1 | . . 1 Average Slot Usage (%) 80 | . 81 78 Engine 7 | . 9 5 Treads 16 | . 19 13 Leg 3 | . . 6 Wheel 2 | . 5 . Device 16 | . 16 16 Storage 4 | . . 8 Protection 8 | . 7 10 Ballistic Gun 9 | . 13 5 Special Weapon 6 | . 6 6 Impact Weapon 1 | . . 3 Naked Turns . | . . . Heaviest Build 30 | 7 9 30 Greatest Support 40 | 20 40 40 Greatest Overweight (x) 7 | . 1 7 Average Overweight (x) . | . . . Largest Inventory Capacity 15 | 5 5 15 Average Capacity 8 | 5 5 13 Most Carried 9 | 5 5 9 Average Carried 4 | 3 3 4 Final Capacity 15 | 5 5 15 Final Carried 5 | 5 5 3 Class Distribution -------------------- 100% | Mutant Dominant Class ---------------- Mutant | -10/Materials Mutant | -9/Materials Resources | -11 -10 -9 ----------- Run | Yrd Mat Mat Matter Collected 656 | 298 195 163 Remotely . | . . . Salvage Created 666 | 79 287 300 Parts 48 | 8 19 21 Haulers Intercepted 1 | . . 1 Recyclers Shooed 1 | . . 1 Parts Field Recycled . | . . . Retrieved Matter . | . . . Parts Self-Destructed . | . . . Prevented . | . . . Kills | -11 -10 -9 ------- Run | Yrd Mat Mat Combat Hostiles Destroyed 15 | 1 6 8 Guns 6 | 1 5 . Cannons 1 | . 1 . AOE 7 | . . 7 Classes Destroyed 11 | 3 2 6 Worker 2 | 1 . 1 Builder 6 | . . 6 Tunneler 3 | 1 1 1 Hauler 1 | . . 1 Recycler 1 | . . 1 Operator 1 | . 1 . Watcher 2 | . 1 1 Swarmer 3 | . . 3 Grunt 9 | 1 6 2 Brawler 1 | . . 1 Sentry 2 | . . 2 Best Kill Streak 6 | 1 3 6 Combat Bots Only 4 | 1 3 4 Max Kills in Single Turn 4 | 1 2 4 Gunslinging 1 | . 1 . Exploded 3 | . . 3 Melee . | . . . Uniques/NPCs Destroyed . | . . . Combat | -11 -10 -9 -------- Run | Yrd Mat Mat Hostile Shots Fired 140 | 7 45 88 Missed 31 | 1 9 21 Damage Taken 1657 | 67 486 1104 Core 475 | . 69 406 Absorbed by Shields 22 | . . 22 Redirected to Shielding 27 | . 3 24 Core Remaining (%) 86 | 100 72 . Volleys Fired 78 | 16 41 21 Largest 2 | 1 2 2 Hottest 120 | 20 120 120 Shots Fired 100 | 16 57 27 Gun 78 | 16 54 8 Cannon . | . . . Launcher 7 | . . 7 Special 15 | . 3 12 Kinetic 65 | 16 41 8 Thermal 15 | . 3 12 Explosive 7 | . . 7 Electromagnetic 13 | . 13 . Robot Hit Streak 10 | 8 10 8 Robot Miss Streak 4 | 2 4 2 Penetration Max . | . . . Secondary Targets 2 | . 2 . Max Gunslinging Chain 1 | . 1 . Shots Hit Robots 72 | 12 38 22 Core Hits 43 | 4 16 23 Critical Kills . | . . . Critical Parts Destroyed 1 | . . 1 Critical Strikes 1 | . . 1 Smash 1 | . . 1 Melee Attacks 7 | . . 7 Impact 7 | . . 7 Slashing . | . . . Piercing . | . . . Sneak Attacks 1 | . . 1 Combat Hostiles . | . . . Follow-up Attacks . | . . . Damage Inflicted 2272 | 161 619 1492 Guns 704 | 161 483 60 Cannons . | . . . Explosions 1144 | . 88 1056 Melee 208 | . . 208 Ramming . | . . . Kinetic 569 | 161 348 60 Thermal 304 | . 136 168 Explosive 1056 | . . 1056 Electromagnetic 135 | . 135 . Impact 208 | . . 208 Slashing . | . . . Piercing . | . . . Highest Corruption 11 | . . 11 Average Corruption 9 | . . 9 Corruption Purged . | . . . Corruption Blocked . | . . . Effects 1 | . . 1 Heat Flow Errors 1 | . . 1 Overload Shots . | . . . Overflow Damage 97 | . . 97 Projectiles . | . . . Explosions 3 | . . 3 Melee 94 | . . 94 Knockbacks 1 | . . 1 Impact 1 | . . 1 Kinetic . | . . . Secondary . | . . . Self-Inflicted Damage 159 | . . 159 Shots 5 | . . 5 Rammed . | . . . Targets Rammed . | . . . Kicked . | . . . Crushed . | . . . Highest Temperature 285 | . 150 285 Average Temperature 47 | . 64 30 Received Heat Transfer 691 | 36 318 337 Siege Activations . | . . . Robots Corrupted . | . . . Combat Hostiles . | . . . Parts Fried 1 | . 1 . Impact Corruptions 4 | . . 4 Robots Melted . | . . . Combat Hostiles . | . . . Parts Melted . | . . . Heat Transferred 550 | . 200 350 Parts Sabotaged . | . . . Parts Stolen . | . . . Parts Stripped . | . . . Power Chain Reactions 1 | . 1 . Alert | -11 -10 -9 ------- Run | Yrd Mat Mat Peak Influence 172 | 30 172 135 Initial 19 | . 19 . Average 37 | 11 60 19 Maximum Alert Level . | . . . Low Security (%) 100 | 100 100 100 Level 1 . | . . . Level 2 . | . . . Level 3 . | . . . Level 4 . | . . . Level 5 . | . . . High Security . | . . . Max Security . | . . . Squads Dispatched 4 | . 1 3 Investigation 1 | . 1 . Extermination . | . . . Reinforcement 3 | . . 3 Assault . | . . . Garrison . | . . . Intercept . | . . . Searches Triggered . | . . . Construction Impeded 1 | . . 1 Haulers Reinforced . | . . . Active Scanning Responses . | . . . Cargo Convoy Interrupts . | . . . Stealth | -11 -10 -9 --------- Run | Yrd Mat Mat Distress Signals 2 | . 1 1 Communications Jammed . | . . . Distress Signals . | . . . Times Spotted 28 | 1 13 14 Peak Tracking Total 6 | 1 5 6 Tactical Retreats . | . . . Traps | -11 -10 -9 ------- Run | Yrd Mat Mat Traps Triggered 3 | . 3 . Indirectly . | . . . Trap Hack Attempts . | . . . Triggered . | . . . Disarmed 4 | . 4 . Reprogrammed . | . . . Reused . | . . . Traps Extracted . | . . . Installed . | . . . Triggered . | . . . Machines | -11 -10 -9 ---------- Run | Yrd Mat Mat Machines Disabled . | . . . Max in Single Turn . | . . . Machines Repaired . | . . . Machines Dismantled . | . . . Machines Sabotaged . | . . . Overloaded Fab Kills . | . . . Hacking | -11 -10 -9 --------- Run | Yrd Mat Mat Machines Accessed 5 | . 4 1 Terminals 5 | . 4 1 Fabricators . | . . . Repair Stations . | . . . Recycling Units . | . . . Scanalyzers . | . . . Garrison Access . | . . . Total Hacks 14 | . 12 2 Successful 10 | . 8 2 Failed 4 | . 4 . Catastrophic . | . . . Database Lockouts . | . . . Manual . | . . . Terminals 14 | . 12 2 Fabricators . | . . . Repair Stations . | . . . Recycling Units . | . . . Scanalyzers . | . . . Garrison Access . | . . . Terminal Hacks 10 | . 8 2 Record 1 | . 1 . Alert Level 3 | . 2 1 Unreport Threat 1 | . 1 . Locate Traps 1 | . 1 . Disarm Traps 1 | . 1 . Dispatch Records 2 | . 1 1 Hauler Manifests 1 | . 1 . Fabricator Hacks . | . . . Repair Station Hacks . | . . . Recycling Unit Hacks . | . . . Scanalyzer . | . . . Garrison Access Hacks . | . . . Unauthorized Hacks . | . . . Terminals . | . . . Fabricators . | . . . Repair Stations . | . . . Recycling Units . | . . . Scanalyzers . | . . . Garrison Access . | . . . Data Cores Recovered 1 | . 1 . Used . | . . . Hacking Detections 4 | . 3 1 Full Trace Events 2 | . 2 . Feedback Events . | . . . Feedback Blocked . | . . . Robot Schematics Acquired . | . . . Robots Built . | . . . Authchips . | . . . Time . | . . . Total Robot Build Rating . | . . . Part Schematics Acquired . | . . . Parts Built . | . . . Authchips . | . . . Time . | . . . Total Part Build Rating . | . . . Parts Repaired . | . . . Time . | . . . Parts Recycled . | . . . Recycled Matter . | . . . Retrieved Matter . | . . . Retrieved Components . | . . . Parts Scanalyzed . | . . . Part Schematics Acquired . | . . . Parts Damaged . | . . . Bothacking | -11 -10 -9 ------------ Run | Yrd Mat Mat Used RIF Installer . | . . . Robots Hacked . | . . . Non-combat . | . . . Combat . | . . . Robot Hacks Applied . | . . . Relay Couplers Released . | . . . Fabnet Peak Effective % . | . . . Robots Rewired . | . . . Allies Hacked . | . . . Hacks Repelled . | . . . Allies | -11 -10 -9 -------- Run | Yrd Mat Mat Total Allies . | . . . Largest Group . | . . . Highest-Rated Group . | . . . Highest-Rated Ally . | . . . Total Orders . | . . . Ally Attacks . | . . . Total Damage . | . . . Kills . | . . . Allies Corrupted . | . . . Allies Melted . | . . . Intel | -11 -10 -9 ------- Run | Yrd Mat Mat Robot Analysis Total . | . . . Derelict Logs Recovered . | . . . Drone Launches . | . . . Drone Recoveries . | . . . Exploration | -11 -10 -9 ------------- Run | Yrd Mat Mat Turns Passed 1167 | 108 539 520 Spaces Moved 597 | 89 317 191 Core 43 | 35 7 1 Treads 359 | . 199 160 Legs 30 | . . 30 Wheels 165 | 54 111 . Hover . | . . . Flight . | . . . Fastest Speed 50 | 50 50 160 Average Speed 132 | 68 129 166 Slowest Speed 400 | 80 160 400 Overloaded Moves . | . . . Propulsion Burnouts . | . . . Robots Hopped . | . . . Cave-ins Triggered . | . . . Exploration Rate (%) 25 | 7 43 27 Regions Visited 2 Branch Regions . Pre-discovered Areas . | . . . Known Exits Taken . | . . . Unknown Exits Taken 2 | 1 1 . Scrap Searched . | . . . Spaces Dug . | . . . Terrain Destroyed 50 | . 4 46 Melee . | . . . Projectile 3 | . 1 2 AOE 47 | . 3 44 Terrain Rammed . | . . . Walls Destroyed . | . . . Machines Disabled . | . . . Actions | -11 -10 -9 --------- Run | Yrd Mat Mat Total 833 | 119 382 332 Wait 82 | . . 82 Move 595 | 88 316 191 Hop . | . . . Pick Up 27 | 9 8 10 Fast Attach 6 | 2 4 . Attach 24 | 4 7 13 Detach 5 | . 1 4 Swap 2 | . 1 1 Drop 7 | . 4 3 Fire 78 | 16 41 21 Melee 7 | . . 7 Ram . | . . . Kick . | . . . Crush . | . . . Escape Stasis . | . . . Rewire . | . . . Trap . | . . . Miscellaneous . | . . . Route ------- -11/Scrapyard -10/Materials (discovered 2 exits: *Mat / [Sub]) -9/Materials (discovered 1 exit: [*Min]) History --------- Turn | Location | Event 2 | -11/Scrapyard | Met Revision 17 52 | -11/Scrapyard | Discovered new exit (range 8) 109 | -11/Scrapyard | Entered Materials 150 | -10/Materials | Discovered new exit (range 8) 303 | -10/Materials | Build established: Mutant 336 | -10/Materials | Lost 3 parts (1p1u1w) 515 | -10/Materials | Discovered new exit (range 16) 648 | -10/Materials | Entered another Materials area 648 | -9/Materials | Evolved 2 slots: Utility x2 1009 | -9/Materials | Lost 5 parts (1p2n1u1w) 1075 | -9/Materials | Discovered new exit (range 9) 1152 | -9/Materials | Core integrity fell below 50% 1155 | -9/Materials | System corruption reached 10% 1158 | -9/Materials | Core integrity fell below 20% 1168 | -9/Materials | Destroyed by Y-45 Defender with Beam Rifle Last Messages --------------- 01158_ U-05 Engineer lays Concrete. 01158_ K-01 Serf collects debris. 01159_ System corrupted: Heat flow error (+289). 01159_ O-16 Technician: "IFF HANDSHAKE FAILED. SECURING TERMINAL." 01159_ U-05 Engineer builds a Wall. 01159_ O-16 Technician uses terminal to summon reinforcements. 01159_ ALERT: Hostiles spotted, dispatching reinforcements to Terminal M006. 01159_ O-16 Technician locks terminal. 01159_ W-16 Scout destroyed. 01162_ K-01 Serf collects debris. 01163_ U-05 Engineer lays Concrete. 01165_ K-01 Serf collects debris. 01166_ U-05 Engineer lays Concrete. 01167_ K-01 Serf collects debris. 01167_ U-05 Engineer lays Concrete. 01168_ The unstable cave ceiling collapses. 01168_ Critical hit (Burn: +37). Map ----- +----------------------------------------------------+ | ?????????????????????????????????????????????????? | | ?????????????????????????????????????????????????? | | ?????????????????????????????????????????????????? | | ?????????????????????????????????????????????????? | | ?????????????????????????????????????????????????? | | ???????? ?? ?????????????????????????????????????? | | ???#???????? ????????????????????????????????????? | | #?????????? ?????????????????????????????????????? | | ???????????? ??? ????????????????????????????????? | | ?#?#?#?????#?????#???????????????????????????????? | | ????????????#?#??????#??#????#???????????????????? | | #?????#???????##????#????????????????????????????? | | ??#?????????#?#######???#???"????????????????????? | | ????########? #?????????"?????????????????? | | ??#?# ## ? #??? ???????????????????????? | | ????# "" ## #???????????????????????????? | | ????# ""S ## """ """ #?#?????????? ??????????????? | | ##### "" ## """ """ #??#??????? ????????????????? | | # ## """ """ #?#????"????????????????????? | | " # # #?##????????????#???????????? | | " # [/## ### #####????? ##??????????? | | " ###+###### #### #### #??????????? | | # % u T" ?????????? | | " ! + ! u=% " ????????? | | " # k= |= Y% ???????? | | " # ######## g = @# #### #??????????? | | # ######## k g### #???????????????????? | | # #??????# " % """ #?????????????????? | | #+#????### ""# "T" #?#???????????????? | | ###+# ?? # || #?????????????????? | | ??# # ??# < ""# +?????????????????? | | ### # ?? # !!# ]! #???? ????????????? | | ! # # ""# !! #??#??????????????? | | / + # "# ! #?????????????????? | | # ## #### ! #?????????????????? | | #### ## #??#### #######????????????????? | | #?? ## ?????###??????????????????????? | | #?? ??## ??????????????????????????????? | | #??######???# ??????????????????????????????? | | ###??????#????##+###?????????????????????????????? | | ??#??#???????????????????????????????????????????? | | ??????#???#??? ??????????????????????????????????? | | ??????#??????????????????????????????????????????? | | ?????#????#?? ???????????????????????????????????? | | ?????????????????????????????????????????????????? | | ?????????????????????????????????????????????????? | | ????????#????????????????????????????????????????? | | ?#???????????????????????????????????????????????? | | #????????????????????????????????????????????????? | | ?????????????????????????????????????????????????? | +----------------------------------------------------+ Best States ------------- Heat Dissipation 28 Energy Generation 10 Energy Capacity 125 Matter Stores 300 Matter Capacity 300 Sight Range 16 Robot Scan Range 14 Terrain Scan Range 16 Terrain Scan Density 10 Weapon Shielding 33 Evasion (%) 50 Recoil Reduction 2 Item Schematics ----------------- None Robot Schematics ------------------ None Fabricated ------------ Nothing Alien Tech Used ----------------- None Achievements -------------- Let's See Who's Tougher Shopping List System Compromised Challenges ------------ None Game ------ Seed OmegaSiegeShredder Manual? 0 Play Time 00:23:22 Cumulative 2.2 hours Start 2024.04.13 @ 15:48:56 End 2024.04.13 @ 16:16:19 Sessions 1 Manual Loads 0 Difficulty Rogue Special Mode None Game No. 3 Rogue 3 Adventurer 0 Explorer 0 Win Type - Total 0 Types 0/0/0/0/0/0/0/0/0 Lore% 0 Gallery% 5 Achievement% 5 Wizard Run 0 Options --------- Layout 2 ASCII 0 Keyboard 0 Movement Mouse Keybinds 0 Fullscreen 1 Font 48/Smallcaps Map View 25x22 Zoom Use 100% Tactical HUD 1 Map Filters NONE Filters NONE Steam 1 RUN: c38c631a-0359-4e01-8c00-dbebe24cf5e1